[Event "Late-Titled-Tuesday-Blitz-September-19-2023"]
[Site "Chess.com"]
[Date "2023.09.19"]
[Round "2"]
[White "Schattman"]
[Black "MajorCoast"]
[Result "1/2-1/2"]
[WhiteElo "2487"]
[BlackElo "2280"]
[TimeControl "180+1"]
[EndTime "14:14:42 PDT"]
[Termination "Game drawn by repetition"]

1. Nf3 {[%clk 0:03:00.9]} 1... g6 {[%clk 0:02:56.9]} 2. e4 {[%clk 0:02:58.6]}
2... c6 {[%clk 0:02:55.8]} 3. d4 {[%clk 0:02:53.9]} 3... d5 {[%clk 0:02:55.9]}
4. Nc3 {[%clk 0:02:54.3]} 4... dxe4 {[%clk 0:02:54.8]} 5. Nxe4 {[%clk
0:02:53.6]} 5... Bg4 {[%clk 0:02:54.9]} 6. c3 {[%clk 0:02:52]} 6... Bg7 {[%clk
0:02:51.9]} 7. h3 {[%clk 0:02:51.2]} 7... Bxf3 {[%clk 0:02:51.3]} 8. Qxf3 {[%clk
0:02:52.1]} 8... Nf6 {[%clk 0:02:51.5]} 9. Nxf6+ {[%clk 0:02:47.4]} 9... Bxf6
{[%clk 0:02:52.4]} 10. Bh6 {[%clk 0:02:47.1]} 10... Nd7 {[%clk 0:02:46.7]} 11.
Bc4 {[%clk 0:02:39.5]} 11... e6 {[%clk 0:02:37.7]} 12. O-O {[%clk 0:02:28.6]}
12... Bg5 {[%clk 0:02:29]} 13. Bg7 {[%clk 0:01:58.6]} 13... Rg8 {[%clk
0:02:27.9]} 14. Be5 {[%clk 0:01:56.5]} 14... Nxe5 {[%clk 0:02:14.5]} 15. dxe5
{[%clk 0:01:57.4]} 15... Be7 {[%clk 0:02:13.2]} 16. Rfd1 {[%clk 0:01:48.9]}
16... Qc7 {[%clk 0:02:13.5]} 17. Qe3 {[%clk 0:01:40.9]} 17... Qb6 {[%clk
0:01:45.6]} 18. Qe2 {[%clk 0:01:18.7]} 18... Rd8 {[%clk 0:01:37]} 19. Rxd8+
{[%clk 0:01:17.6]} 19... Qxd8 {[%clk 0:01:27.1]} 20. Rd1 {[%clk 0:01:17.1]}
20... Qc7 {[%clk 0:01:27]} 21. Qe3 {[%clk 0:01:14.4]} 21... Qb6 {[%clk
0:01:23.3]} 22. Qe2 {[%clk 0:01:09.9]} 22... Qc7 {[%clk 0:01:21.4]} 23. Qe3
{[%clk 0:01:08.1]} 23... Qb6 {[%clk 0:01:21.5]} 24. Qd3 {[%clk 0:01:08.4]} 24...
Qd8 {[%clk 0:01:11]} 25. Qe2 {[%clk 0:01:04]} 25... Qc7 {[%clk 0:01:06.7]}
1/2-1/2

[Event "Late-Titled-Tuesday-Blitz-September-19-2023"]
[Site "Chess.com"]
[Date "2023.09.19"]
[Round "2"]
[White "Eloist"]
[Black "Veleamater"]
[Result "0-1"]
[WhiteElo "2487"]
[BlackElo "2322"]
[TimeControl "180+1"]
[EndTime "14:14:44 PDT"]
[Termination "Veleamater won by resignation"]

1. e4 {[%clk 0:02:55.9]} 1... d6 {[%clk 0:03:00.9]} 2. d4 {[%clk 0:02:54.7]}
2... g6 {[%clk 0:03:01.5]} 3. Nc3 {[%clk 0:02:54.3]} 3... Bg7 {[%clk 0:03:02]}
4. Nf3 {[%clk 0:02:54.5]} 4... Nf6 {[%clk 0:03:02.6]} 5. Be2 {[%clk 0:02:54.3]}
5... O-O {[%clk 0:03:03.2]} 6. O-O {[%clk 0:02:54.4]} 6... Nc6 {[%clk
0:03:03.3]} 7. d5 {[%clk 0:02:53.9]} 7... Ne5 {[%clk 0:03:02.8]} 8. Nxe5 {[%clk
0:02:53]} 8... dxe5 {[%clk 0:03:03]} 9. Bg5 {[%clk 0:02:52.8]} 9... h6 {[%clk
0:03:03.2]} 10. Bh4 {[%clk 0:02:49.8]} 10... g5 {[%clk 0:03:02.9]} 11. Bg3
{[%clk 0:02:49.3]} 11... Ne8 {[%clk 0:03:03.3]} 12. Bg4 {[%clk 0:02:46.1]} 12...
Nd6 {[%clk 0:02:56.2]} 13. Bxc8 {[%clk 0:02:45.3]} 13... Rxc8 {[%clk 0:02:54.9]}
14. h4 {[%clk 0:02:42.9]} 14... e6 {[%clk 0:02:50.9]} 15. hxg5 {[%clk
0:02:35.8]} 15... Qxg5 {[%clk 0:02:46.9]} 16. dxe6 {[%clk 0:02:31.7]} 16... fxe6
{[%clk 0:02:44.3]} 17. Qc1 {[%clk 0:02:24]} 17... Qg6 {[%clk 0:02:42.5]} 18. Qe3
{[%clk 0:02:14.7]} 18... a6 {[%clk 0:02:42.4]} 19. Rad1 {[%clk 0:02:10]} 19...
Rf7 {[%clk 0:02:41.6]} 20. Qc5 {[%clk 0:02:03.2]} 20... Bf8 {[%clk 0:02:29.5]}
21. Qxe5 {[%clk 0:01:53.7]} 21... Bg7 {[%clk 0:02:25.2]} 22. Qc5 {[%clk
0:01:52.4]} 22... Bxc3 {[%clk 0:02:22.2]} 23. Bxd6 {[%clk 0:01:36.7]} 23... Bxb2
{[%clk 0:02:18.3]} 24. Rd3 {[%clk 0:01:32.7]} 24... Bg7 {[%clk 0:02:15.5]} 25.
Rg3 {[%clk 0:01:25.7]} 25... Qxe4 {[%clk 0:02:14.7]} 26. Be5 {[%clk 0:01:15.8]}
26... Qh7 {[%clk 0:02:06.2]} 27. Re1 {[%clk 0:01:11.2]} 27... Kh8 {[%clk
0:02:02.7]} 28. Rxg7 {[%clk 0:01:03.5]} 28... Rxg7 {[%clk 0:02:01.7]} 29. Qe7
{[%clk 0:00:57.4]} 29... Rg8 {[%clk 0:01:54]} 30. Re3 {[%clk 0:00:54.7]} 30...
Qxc2 {[%clk 0:01:53.5]} 31. Rg3 {[%clk 0:00:48.9]} 31... Qd1+ {[%clk 0:01:53]}
32. Kh2 {[%clk 0:00:48.2]} 32... Qh5+ {[%clk 0:01:52.9]} 33. Rh3 {[%clk
0:00:40.8]} 33... Qxe5+ {[%clk 0:01:52.4]} 0-1

[Event "Late-Titled-Tuesday-Blitz-September-19-2023"]
[Site "Chess.com"]
[Date "2023.09.19"]
[Round "2"]
[White "serhanberat_ozdemir"]
[Black "FairChess_on_YouTube"]
[Result "0-1"]
[WhiteElo "2621"]
[BlackElo "3071"]
[TimeControl "180+1"]
[EndTime "14:14:53 PDT"]
[Termination "FairChess_on_YouTube won by resignation"]

1. e4 {[%clk 0:03:00.9]} 1... e5 {[%clk 0:02:59.2]} 2. Nf3 {[%clk 0:03:00.8]}
2... Nc6 {[%clk 0:02:59.8]} 3. d4 {[%clk 0:03:00.1]} 3... exd4 {[%clk
0:02:59.6]} 4. Bc4 {[%clk 0:03:00.8]} 4... Be7 {[%clk 0:02:56.3]} 5. c3 {[%clk
0:03:00.3]} 5... Nf6 {[%clk 0:02:54.7]} 6. e5 {[%clk 0:02:58.7]} 6... Ne4 {[%clk
0:02:54.5]} 7. Bd5 {[%clk 0:02:41]} 7... f5 {[%clk 0:02:51.4]} 8. cxd4 {[%clk
0:02:27.2]} 8... Nb4 {[%clk 0:02:51.3]} 9. Bb3 {[%clk 0:02:22.1]} 9... d5 {[%clk
0:02:51.2]} 10. exd6 {[%clk 0:02:18.8]} 10... Qxd6 {[%clk 0:02:50.6]} 11. Ne5
{[%clk 0:01:41.1]} 11... Be6 {[%clk 0:02:43.5]} 12. Bf4 {[%clk 0:01:38.8]} 12...
Qa6 {[%clk 0:02:30.9]} 13. Nc3 {[%clk 0:00:54.2]} 13... Bxb3 {[%clk 0:02:22.3]}
14. Qxb3 {[%clk 0:00:53.9]} 14... O-O-O {[%clk 0:02:20]} 15. a3 {[%clk
0:00:39.4]} 15... Rxd4 {[%clk 0:02:14]} 16. axb4 {[%clk 0:00:19.1]} 16... Qxa1+
{[%clk 0:02:13]} 17. Ke2 {[%clk 0:00:19.8]} 17... Qxh1 {[%clk 0:01:59.2]} 18.
Nb5 {[%clk 0:00:18.1]} 18... Qd1+ {[%clk 0:01:47.1]} 19. Qxd1 {[%clk 0:00:18.4]}
19... Rxd1 {[%clk 0:01:47.2]} 20. Kxd1 {[%clk 0:00:18.1]} 20... a6 {[%clk
0:01:45.7]} 21. Nd4 {[%clk 0:00:17.2]} 21... Rd8 {[%clk 0:01:45]} 0-1

[Event "Late-Titled-Tuesday-Blitz-September-19-2023"]
[Site "Chess.com"]
[Date "2023.09.19"]
[Round "2"]
[White "GadimbayliA"]
[Black "BigAl"]
[Result "1-0"]
[WhiteElo "2831"]
[BlackElo "2546"]
[TimeControl "180+1"]
[EndTime "14:15:01 PDT"]
[Termination "GadimbayliA won by resignation"]

1. e4 {[%clk 0:03:00.2]} 1... c6 {[%clk 0:03:00]} 2. Nf3 {[%clk 0:03:00.1]} 2...
d5 {[%clk 0:03:00.4]} 3. exd5 {[%clk 0:03:01]} 3... cxd5 {[%clk 0:03:00.4]} 4.
Ne5 {[%clk 0:03:01.6]} 4... Nd7 {[%clk 0:02:59.8]} 5. d4 {[%clk 0:03:02]} 5...
Nxe5 {[%clk 0:02:59.6]} 6. dxe5 {[%clk 0:03:02.9]} 6... e6 {[%clk 0:02:58.4]} 7.
c3 {[%clk 0:03:03.4]} 7... Ne7 {[%clk 0:02:58.9]} 8. Nd2 {[%clk 0:03:03.5]} 8...
Nc6 {[%clk 0:02:59.5]} 9. Nf3 {[%clk 0:03:04.4]} 9... Be7 {[%clk 0:03:00]} 10.
Bd3 {[%clk 0:03:04.4]} 10... Bd7 {[%clk 0:02:57.7]} 11. Qe2 {[%clk 0:03:04.1]}
11... Rc8 {[%clk 0:02:57.1]} 12. Bf4 {[%clk 0:03:04.2]} 12... a6 {[%clk
0:02:41.7]} 13. h4 {[%clk 0:03:03.3]} 13... h6 {[%clk 0:02:34]} 14. h5 {[%clk
0:03:02.6]} 14... Na5 {[%clk 0:02:19.4]} 15. O-O {[%clk 0:02:58.4]} 15... Nc4
{[%clk 0:02:18.2]} 16. Nd4 {[%clk 0:02:57]} 16... Qb6 {[%clk 0:01:58]} 17. Rab1
{[%clk 0:02:53.1]} 17... Bg5 {[%clk 0:01:36.2]} 18. Bxg5 {[%clk 0:02:06.6]}
18... hxg5 {[%clk 0:01:35.5]} 19. f4 {[%clk 0:02:07.3]} 19... gxf4 {[%clk
0:01:21.6]} 20. Rxf4 {[%clk 0:02:08.2]} 20... Qd8 {[%clk 0:00:42.8]} 21. Rbf1
{[%clk 0:02:02.3]} 21... Qg5 {[%clk 0:00:33.8]} 22. Bxc4 {[%clk 0:02:02.6]}
22... dxc4 {[%clk 0:00:27.6]} 23. Rxf7 {[%clk 0:01:59.3]} 23... Rc5 {[%clk
0:00:17.8]} 24. Qf3 {[%clk 0:01:54.4]} 24... Qxh5 {[%clk 0:00:11]} 25. Rf8+
{[%clk 0:01:50.9]} 25... Ke7 {[%clk 0:00:10.9]} 26. Qf7+ {[%clk 0:01:50.7]} 1-0

[Event "Late-Titled-Tuesday-Blitz-September-19-2023"]
[Site "Chess.com"]
[Date "2023.09.19"]
[Round "2"]
[White "Fleetw00dMac"]
[Black "dcann0n88"]
[Result "1-0"]
[WhiteElo "2463"]
[BlackElo "2229"]
[TimeControl "180+1"]
[EndTime "14:15:05 PDT"]
[Termination "Fleetw00dMac won by resignation"]

1. d4 {[%clk 0:03:00.9]} 1... Nf6 {[%clk 0:02:57.2]} 2. c4 {[%clk 0:03:00.7]}
2... g6 {[%clk 0:02:56.7]} 3. Nc3 {[%clk 0:03:01.3]} 3... Bg7 {[%clk 0:02:56.8]}
4. e4 {[%clk 0:03:01.5]} 4... d6 {[%clk 0:02:56.8]} 5. Nf3 {[%clk 0:03:02.2]}
5... O-O {[%clk 0:02:57.3]} 6. Be2 {[%clk 0:03:02.7]} 6... e5 {[%clk 0:02:54]}
7. O-O {[%clk 0:03:03.2]} 7... Na6 {[%clk 0:02:43.3]} 8. d5 {[%clk 0:03:01.6]}
8... Nc5 {[%clk 0:02:42.1]} 9. Qc2 {[%clk 0:03:00.5]} 9... a5 {[%clk 0:02:41.1]}
10. Bg5 {[%clk 0:02:59.9]} 10... h6 {[%clk 0:02:40.6]} 11. Be3 {[%clk
0:02:59.6]} 11... b6 {[%clk 0:02:35.2]} 12. Nd2 {[%clk 0:02:58]} 12... Ng4
{[%clk 0:02:29.3]} 13. Bxg4 {[%clk 0:02:57.1]} 13... Bxg4 {[%clk 0:02:30.2]} 14.
a3 {[%clk 0:02:52.1]} 14... a4 {[%clk 0:02:26.7]} 15. Bxc5 {[%clk 0:02:50.4]}
15... bxc5 {[%clk 0:02:24.8]} 16. Nxa4 {[%clk 0:02:50.4]} 16... f5 {[%clk
0:02:23.7]} 17. f3 {[%clk 0:02:48.9]} 17... Bh5 {[%clk 0:02:23.5]} 18. b4 {[%clk
0:02:46]} 18... cxb4 {[%clk 0:02:18.1]} 19. axb4 {[%clk 0:02:45.6]} 19... f4
{[%clk 0:02:06.9]} 20. c5 {[%clk 0:02:44.2]} 20... g5 {[%clk 0:02:06]} 21. b5
{[%clk 0:02:35.7]} 21... Be8 {[%clk 0:01:57.2]} 22. c6 {[%clk 0:02:30.8]} 22...
h5 {[%clk 0:01:52.8]} 23. Rab1 {[%clk 0:02:25.2]} 23... g4 {[%clk 0:01:50.6]}
24. b6 {[%clk 0:02:23.4]} 24... g3 {[%clk 0:01:31.7]} 25. h3 {[%clk 0:02:19.9]}
25... cxb6 {[%clk 0:01:13.3]} 26. c7 {[%clk 0:02:17.6]} 26... Qh4 {[%clk
0:00:54.3]} 27. Nxb6 {[%clk 0:02:12.1]} 27... Rc8 {[%clk 0:00:44.3]} 28. Rfc1
{[%clk 0:01:55.2]} 28... Rf7 {[%clk 0:00:18.3]} 29. Nxc8 {[%clk 0:01:52.1]}
29... Bd7 {[%clk 0:00:18.2]} 30. Ne7+ {[%clk 0:01:52]} 30... Qxe7 {[%clk
0:00:17.2]} 31. c8=Q+ {[%clk 0:01:51.7]} 1-0

[Event "Late-Titled-Tuesday-Blitz-September-19-2023"]
[Site "Chess.com"]
[Date "2023.09.19"]
[Round "2"]
[White "Nick12772"]
[Black "HalfIsCrayfish"]
[Result "0-1"]
[WhiteElo "2373"]
[BlackElo "2562"]
[TimeControl "180+1"]
[EndTime "14:15:08 PDT"]
[Termination "HalfIsCrayfish won by resignation"]

1. Nf3 {[%clk 0:03:00.9]} 1... Nc6 {[%clk 0:02:56.4]} 2. e4 {[%clk 0:03:00.6]}
2... e5 {[%clk 0:02:56.5]} 3. Bc4 {[%clk 0:03:00.7]} 3... Nf6 {[%clk 0:02:56.3]}
4. d4 {[%clk 0:03:00.8]} 4... Nxe4 {[%clk 0:02:43.2]} 5. dxe5 {[%clk 0:02:47.1]}
5... d5 {[%clk 0:02:41.8]} 6. Bxd5 {[%clk 0:02:37.8]} 6... Bf5 {[%clk
0:02:37.3]} 7. O-O {[%clk 0:02:27.3]} 7... Bc5 {[%clk 0:02:31.7]} 8. Bxc6+
{[%clk 0:02:11.1]} 8... bxc6 {[%clk 0:02:27.5]} 9. Qxd8+ {[%clk 0:02:08.9]} 9...
Rxd8 {[%clk 0:02:28.4]} 10. Be3 {[%clk 0:01:58.9]} 10... Bxe3 {[%clk 0:02:24.6]}
11. fxe3 {[%clk 0:01:59.8]} 11... Bg6 {[%clk 0:02:14.3]} 12. Na3 {[%clk
0:01:47.9]} 12... Ke7 {[%clk 0:02:08.9]} 13. Rfd1 {[%clk 0:01:43.2]} 13... c5
{[%clk 0:02:03.6]} 14. Nc4 {[%clk 0:01:42.7]} 14... Ke6 {[%clk 0:02:00.9]} 15.
Kf1 {[%clk 0:01:28.7]} 15... h6 {[%clk 0:01:50.8]} 16. Ke2 {[%clk 0:01:25.9]}
16... Ng5 {[%clk 0:01:47.3]} 17. Rxd8 {[%clk 0:01:22.3]} 17... Rxd8 {[%clk
0:01:45.5]} 18. Rd1 {[%clk 0:01:12.8]} 18... Rb8 {[%clk 0:01:37.7]} 19. Nxg5+
{[%clk 0:01:06.3]} 19... hxg5 {[%clk 0:01:36.4]} 20. Rd2 {[%clk 0:01:02.7]}
20... Be4 {[%clk 0:01:35]} 21. Kf2 {[%clk 0:00:55]} 21... Bd5 {[%clk 0:01:34.2]}
22. b3 {[%clk 0:00:39.5]} 22... Bxc4 {[%clk 0:01:33.1]} 23. bxc4 {[%clk
0:00:40.4]} 23... Rb4 {[%clk 0:01:33.4]} 24. Rd8 {[%clk 0:00:27.6]} 24... Rxc4
{[%clk 0:01:29]} 25. Re8+ {[%clk 0:00:28]} 25... Kd7 {[%clk 0:01:28.7]} 0-1

[Event "Late-Titled-Tuesday-Blitz-September-19-2023"]
[Site "Chess.com"]
[Date "2023.09.19"]
[Round "2"]
[White "kaanadayhamle"]
[Black "Chempiblinka"]
[Result "1-0"]
[WhiteElo "2438"]
[BlackElo "2141"]
[TimeControl "180+1"]
[EndTime "14:15:11 PDT"]
[Termination "kaanadayhamle won by resignation"]

1. Nf3 {[%clk 0:03:00.9]} 1... Nf6 {[%clk 0:02:58.3]} 2. g3 {[%clk 0:03:00.1]}
2... g6 {[%clk 0:02:58.8]} 3. Bg2 {[%clk 0:03:01]} 3... Bg7 {[%clk 0:02:59.3]}
4. O-O {[%clk 0:03:01.9]} 4... O-O {[%clk 0:02:58.8]} 5. c4 {[%clk 0:03:02.8]}
5... d6 {[%clk 0:02:58.6]} 6. Nc3 {[%clk 0:03:03.7]} 6... c6 {[%clk 0:02:54.8]}
7. b4 {[%clk 0:03:03.5]} 7... Ne4 {[%clk 0:02:46.1]} 8. Bb2 {[%clk 0:02:56.7]}
8... Nxc3 {[%clk 0:02:45.6]} 9. Bxc3 {[%clk 0:02:57.6]} 9... Bxc3 {[%clk
0:02:45.4]} 10. dxc3 {[%clk 0:02:58.5]} 10... e5 {[%clk 0:02:39.1]} 11. Qd2
{[%clk 0:02:58.4]} 11... Be6 {[%clk 0:02:39.2]} 12. Rfd1 {[%clk 0:02:49.1]}
12... Bxc4 {[%clk 0:02:23]} 13. Nxe5 {[%clk 0:02:48.2]} 13... Be6 {[%clk
0:02:06.1]} 14. Qxd6 {[%clk 0:02:46.9]} 14... Qf6 {[%clk 0:01:56.3]} 15. Rac1
{[%clk 0:02:33.6]} 15... Na6 {[%clk 0:01:39.3]} 16. Nd7 {[%clk 0:02:22.5]} 16...
Qg5 {[%clk 0:01:09.7]} 17. Nxf8 {[%clk 0:02:21.5]} 17... Rxf8 {[%clk 0:01:10.6]}
18. Qd2 {[%clk 0:02:15]} 18... Qb5 {[%clk 0:01:04.9]} 19. e3 {[%clk 0:02:08.3]}
19... Qa4 {[%clk 0:01:04.6]} 20. Bf1 {[%clk 0:02:08]} 20... Nc7 {[%clk 0:00:50]}
21. Qc2 {[%clk 0:02:05.5]} 21... Qa3 {[%clk 0:00:44.5]} 22. c4 {[%clk
0:01:53.1]} 22... Qxb4 {[%clk 0:00:41.5]} 23. Qb3 {[%clk 0:01:52.2]} 23... Qxb3
{[%clk 0:00:37.4]} 24. axb3 {[%clk 0:01:53.1]} 24... Na6 {[%clk 0:00:33.2]} 25.
Ra1 {[%clk 0:01:49.8]} 25... Bf5 {[%clk 0:00:28]} 26. Rd2 {[%clk 0:01:45.4]}
26... Re8 {[%clk 0:00:19.7]} 27. Bg2 {[%clk 0:01:40.2]} 27... h5 {[%clk
0:00:18.5]} 28. Bxc6 {[%clk 0:01:39.9]} 1-0

[Event "Late-Titled-Tuesday-Blitz-September-19-2023"]
[Site "Chess.com"]
[Date "2023.09.19"]
[Round "2"]
[White "rionelG"]
[Black "ElDivis"]
[Result "0-1"]
[WhiteElo "2321"]
[BlackElo "2506"]
[TimeControl "180+1"]
[EndTime "14:15:14 PDT"]
[Termination "ElDivis won by resignation"]

1. e4 {[%clk 0:02:59.7]} 1... c5 {[%clk 0:02:59.7]} 2. g3 {[%clk 0:02:59.4]}
2... d5 {[%clk 0:02:57.1]} 3. exd5 {[%clk 0:03:00.3]} 3... Qxd5 {[%clk
0:02:57.5]} 4. Nf3 {[%clk 0:03:00.4]} 4... Bg4 {[%clk 0:02:56.7]} 5. Bg2 {[%clk
0:03:01]} 5... Qe6+ {[%clk 0:02:53.7]} 6. Kf1 {[%clk 0:03:01]} 6... Nc6 {[%clk
0:02:44.7]} 7. h3 {[%clk 0:03:01.2]} 7... Bh5 {[%clk 0:02:40]} 8. d3 {[%clk
0:02:59.9]} 8... Nf6 {[%clk 0:02:38.5]} 9. Nc3 {[%clk 0:02:59.5]} 9... O-O-O
{[%clk 0:02:36.5]} 10. g4 {[%clk 0:02:57.1]} 10... Bg6 {[%clk 0:02:33.5]} 11.
Bf4 {[%clk 0:02:57.4]} 11... Nd5 {[%clk 0:02:23.6]} 12. Nxd5 {[%clk 0:02:27.5]}
12... Qxd5 {[%clk 0:02:24.5]} 13. Ne5 {[%clk 0:02:26.6]} 13... Qd4 {[%clk
0:02:15.1]} 14. Nxc6 {[%clk 0:02:03.9]} 14... bxc6 {[%clk 0:02:15.2]} 15. Qf3
{[%clk 0:02:01.1]} 15... Rd5 {[%clk 0:02:09.5]} 16. Bg3 {[%clk 0:01:51.6]} 16...
Qxb2 {[%clk 0:01:53.6]} 17. Re1 {[%clk 0:01:43.9]} 17... Qxc2 {[%clk 0:01:48.8]}
18. Qf4 {[%clk 0:01:40.1]} 18... e5 {[%clk 0:01:43.8]} 19. Qc1 {[%clk
0:01:21.1]} 19... Bxd3+ {[%clk 0:01:37.8]} 20. Kg1 {[%clk 0:01:19.4]} 20... Qxc1
{[%clk 0:01:37.4]} 21. Rxc1 {[%clk 0:01:20.3]} 21... e4 {[%clk 0:01:26.6]} 22.
Kh2 {[%clk 0:01:11.1]} 22... h5 {[%clk 0:01:26.3]} 23. g5 {[%clk 0:01:10.5]}
23... Rxg5 {[%clk 0:01:20.9]} 24. f3 {[%clk 0:00:52.1]} 24... h4 {[%clk
0:01:06.8]} 25. Bf2 {[%clk 0:00:46.4]} 25... exf3 {[%clk 0:01:00.9]} 26. Bxf3
{[%clk 0:00:45.4]} 26... Bd6+ {[%clk 0:01:00.6]} 0-1

[Event "Late-Titled-Tuesday-Blitz-September-19-2023"]
[Site "Chess.com"]
[Date "2023.09.19"]
[Round "2"]
[White "Quattroporte300"]
[Black "miraitrunks"]
[Result "0-1"]
[WhiteElo "2413"]
[BlackElo "2125"]
[TimeControl "180+1"]
[EndTime "14:15:24 PDT"]
[Termination "miraitrunks won by checkmate"]

1. e4 {[%clk 0:03:00.9]} 1... e6 {[%clk 0:02:59.7]} 2. d4 {[%clk 0:02:59.9]}
2... d5 {[%clk 0:03:00.6]} 3. Nd2 {[%clk 0:03:00.5]} 3... dxe4 {[%clk
0:02:56.9]} 4. Nxe4 {[%clk 0:03:00.3]} 4... Bd7 {[%clk 0:02:57.6]} 5. Nf3 {[%clk
0:02:59.3]} 5... Bc6 {[%clk 0:02:58.4]} 6. Ng3 {[%clk 0:02:58.7]} 6... Nf6
{[%clk 0:02:58.3]} 7. c3 {[%clk 0:02:58.8]} 7... Bd6 {[%clk 0:02:58.7]} 8. Bd3
{[%clk 0:02:59]} 8... O-O {[%clk 0:02:59.1]} 9. O-O {[%clk 0:02:59.5]} 9... Nbd7
{[%clk 0:02:59.4]} 10. Re1 {[%clk 0:02:57.9]} 10... h6 {[%clk 0:02:58.9]} 11.
Bc2 {[%clk 0:02:54.8]} 11... Re8 {[%clk 0:02:57.8]} 12. Qd3 {[%clk 0:02:50.6]}
12... e5 {[%clk 0:02:51.6]} 13. dxe5 {[%clk 0:02:45.2]} 13... Nxe5 {[%clk
0:02:46.8]} 14. Nxe5 {[%clk 0:02:37.8]} 14... Bxe5 {[%clk 0:02:46.4]} 15. Qf5
{[%clk 0:02:08.1]} 15... Bxg3 {[%clk 0:02:36.6]} 16. Rxe8+ {[%clk 0:02:03]}
16... Qxe8 {[%clk 0:02:37.3]} 17. hxg3 {[%clk 0:01:44.5]} 17... Qe1+ {[%clk
0:02:36.3]} 18. Kh2 {[%clk 0:01:44.7]} 18... h5 {[%clk 0:02:22.2]} 19. Bg5
{[%clk 0:01:19.2]} 19... Qxa1 {[%clk 0:02:20.1]} 20. Bxf6 {[%clk 0:01:17.9]}
20... gxf6 {[%clk 0:02:20.6]} 21. Qh7+ {[%clk 0:01:04.7]} 21... Kf8 {[%clk
0:02:20.4]} 22. Qh8+ {[%clk 0:00:46.2]} 22... Ke7 {[%clk 0:02:20]} 23. Qxa8
{[%clk 0:00:46.9]} 23... Qxb2 {[%clk 0:02:19]} 24. Qxa7 {[%clk 0:00:26.3]} 24...
Qxc2 {[%clk 0:02:17]} 25. Qc5+ {[%clk 0:00:25.7]} 25... Ke8 {[%clk 0:02:13.7]}
26. a3 {[%clk 0:00:09.9]} 26... Qe4 {[%clk 0:02:06.2]} 27. f3 {[%clk 0:00:09.2]}
27... Qd5 {[%clk 0:02:05]} 28. Qe3+ {[%clk 0:00:07.5]} 28... Qe6 {[%clk
0:02:04.4]} 29. Qc5 {[%clk 0:00:04.5]} 29... Qe5 {[%clk 0:02:03.3]} 30. Qa7
{[%clk 0:00:02.6]} 30... h4 {[%clk 0:02:00.6]} 31. f4 {[%clk 0:00:02.3]} 31...
hxg3+ {[%clk 0:01:59.6]} 32. Kxg3 {[%clk 0:00:03.2]} 32... Qxc3+ {[%clk
0:01:59.2]} 33. Kh2 {[%clk 0:00:02.9]} 33... Qd2 {[%clk 0:01:55.9]} 34. Qc5
{[%clk 0:00:02.6]} 34... Qxg2# {[%clk 0:01:54.5]} 0-1

[Event "Late-Titled-Tuesday-Blitz-September-19-2023"]
[Site "Chess.com"]
[Date "2023.09.19"]
[Round "2"]
[White "dretch"]
[Black "whiteglovethief"]
[Result "1-0"]
[WhiteElo "2843"]
[BlackElo "2509"]
[TimeControl "180+1"]
[EndTime "14:15:25 PDT"]
[Termination "dretch won by resignation"]

1. d4 {[%clk 0:03:00.9]} 1... Nf6 {[%clk 0:02:56.2]} 2. c4 {[%clk 0:03:01.3]}
2... c5 {[%clk 0:02:56.1]} 3. d5 {[%clk 0:03:01.4]} 3... b5 {[%clk 0:02:55.5]}
4. Nf3 {[%clk 0:03:01]} 4... g6 {[%clk 0:02:53.5]} 5. Nfd2 {[%clk 0:02:54.9]}
5... Bg7 {[%clk 0:02:50.8]} 6. e4 {[%clk 0:02:55.2]} 6... O-O {[%clk 0:02:49.1]}
7. cxb5 {[%clk 0:02:54.5]} 7... e6 {[%clk 0:02:46.4]} 8. Nc3 {[%clk 0:02:53]}
8... exd5 {[%clk 0:02:46.2]} 9. exd5 {[%clk 0:02:53.2]} 9... Re8+ {[%clk
0:02:46]} 10. Be2 {[%clk 0:02:53.4]} 10... Bb7 {[%clk 0:02:46.3]} 11. Nc4 {[%clk
0:02:52]} 11... a6 {[%clk 0:02:38.2]} 12. Nd6 {[%clk 0:02:41.9]} 12... axb5
{[%clk 0:02:27.1]} 13. Nxe8 {[%clk 0:02:41.2]} 13... Nxe8 {[%clk 0:02:24]} 14.
Nxb5 {[%clk 0:02:36.4]} 14... Qb6 {[%clk 0:02:19.6]} 15. O-O {[%clk 0:02:35.3]}
15... Nc7 {[%clk 0:02:19.8]} 16. Nxc7 {[%clk 0:02:33.1]} 16... Qxc7 {[%clk
0:02:20.7]} 17. d6 {[%clk 0:02:29.9]} 17... Qb6 {[%clk 0:02:18.4]} 18. Bf4
{[%clk 0:02:19.9]} 18... Nc6 {[%clk 0:02:09]} 19. Qb3 {[%clk 0:02:19]} 19... Qa7
{[%clk 0:01:51.7]} 20. Bc4 {[%clk 0:02:12.5]} 20... Rf8 {[%clk 0:01:52]} 21. Bd5
{[%clk 0:01:53]} 21... Ba8 {[%clk 0:01:36]} 22. Rfe1 {[%clk 0:01:42.4]} 22...
Nd4 {[%clk 0:01:33.7]} 23. Qc4 {[%clk 0:01:41.4]} 23... Bxd5 {[%clk 0:01:30.9]}
24. Qxd5 {[%clk 0:01:41.3]} 24... Nc2 {[%clk 0:01:30.6]} 25. Be3 {[%clk
0:01:35.9]} 25... Nxe1 {[%clk 0:01:20.9]} 26. Rxe1 {[%clk 0:01:33.5]} 26... Bxb2
{[%clk 0:01:14.5]} 27. Bh6 {[%clk 0:00:53.2]} 27... Bd4 {[%clk 0:01:03.5]} 28.
Bxf8 {[%clk 0:00:48.6]} 28... Kxf8 {[%clk 0:01:00.1]} 29. Re7 {[%clk 0:00:48.2]}
1-0

[Event "Late-Titled-Tuesday-Blitz-September-19-2023"]
[Site "Chess.com"]
[Date "2023.09.19"]
[Round "2"]
[White "Chessbard1972"]
[Black "jaskol95"]
[Result "0-1"]
[WhiteElo "2367"]
[BlackElo "2553"]
[TimeControl "180+1"]
[EndTime "14:15:26 PDT"]
[Termination "jaskol95 won by checkmate"]

1. d4 {[%clk 0:03:00.4]} 1... d5 {[%clk 0:03:00.1]} 2. c4 {[%clk 0:02:59.9]}
2... e5 {[%clk 0:03:00.5]} 3. dxe5 {[%clk 0:02:59.6]} 3... d4 {[%clk 0:03:01.1]}
4. Nf3 {[%clk 0:02:59.4]} 4... Nc6 {[%clk 0:03:01.2]} 5. g3 {[%clk 0:02:59.1]}
5... Be6 {[%clk 0:02:57]} 6. Bg2 {[%clk 0:02:59.2]} 6... Be7 {[%clk 0:02:49]} 7.
Nbd2 {[%clk 0:03:00.1]} 7... Qd7 {[%clk 0:02:48.7]} 8. a3 {[%clk 0:03:00.8]}
8... h5 {[%clk 0:02:47.3]} 9. h4 {[%clk 0:02:59.6]} 9... f6 {[%clk 0:02:43.1]}
10. exf6 {[%clk 0:02:54.8]} 10... Bxf6 {[%clk 0:02:42.4]} 11. O-O {[%clk
0:02:49.9]} 11... Nge7 {[%clk 0:02:40.4]} 12. b4 {[%clk 0:02:45.9]} 12... O-O
{[%clk 0:02:18.3]} 13. Bb2 {[%clk 0:02:41.9]} 13... Rad8 {[%clk 0:02:14]} 14.
Rc1 {[%clk 0:02:39.3]} 14... Bh3 {[%clk 0:02:05]} 15. Ne4 {[%clk 0:02:34.8]}
15... Bxg2 {[%clk 0:02:02.8]} 16. Kxg2 {[%clk 0:02:34.3]} 16... Qg4 {[%clk
0:01:53.3]} 17. Nxf6+ {[%clk 0:02:33.2]} 17... Rxf6 {[%clk 0:01:53.4]} 18. Qb3
{[%clk 0:02:20]} 18... Ng6 {[%clk 0:01:47.5]} 19. Kh2 {[%clk 0:02:14.8]} 19...
Rdf8 {[%clk 0:01:32.9]} 20. c5+ {[%clk 0:01:58]} 20... Kh8 {[%clk 0:01:31.9]}
21. Rcd1 {[%clk 0:01:36.4]} 21... Rxf3 {[%clk 0:01:14]} 22. exf3 {[%clk
0:01:34.6]} 22... Rxf3 {[%clk 0:01:14.9]} 23. Rd3 {[%clk 0:01:33]} 23... Nce5
{[%clk 0:01:04.6]} 24. Rxf3 {[%clk 0:00:35.6]} 24... Nxf3+ {[%clk 0:01:03.9]}
25. Kg2 {[%clk 0:00:35.9]} 25... Nf4+ {[%clk 0:00:58.9]} 26. Kh1 {[%clk
0:00:29.9]} 26... Qh3# {[%clk 0:00:59.8]} 0-1